bitfinex/quotes_SOLUSD_20240716
["timestamp","ask_amount","ask_price","bid_price","bid_amount"]
[1721138245613,6.3775,156.8,156.79,0.8419054]
[1721138246507,16.3775,156.8,156.79,0.8419054]
[1721138246693,61.3775,156.8,156.79,0.8419054]
[1721138247096,71.3775,156.8,156.79,0.8419054]
[1721138248835,61.3775,156.8,156.79,0.8419054]
[1721138249734,71.3775,156.8,156.79,0.8419054]
[1721138250301,71.5475,156.8,156.79,0.8419054]
[1721138250615,71.7175,156.8,156.79,0.8419054]
[1721138251499,71.5475,156.8,156.79,0.8419054]
[1721138252618,71.7175,156.8,156.79,0.8419054]
[1721138253145,61.3775,156.8,156.79,0.8419054]
[1721138253438,51.3775,156.8,156.79,0.8419054]
[1721138253614,61.3775,156.8,156.79,0.8419054]
[1721138253805,71.3775,156.8,156.79,0.8419054]
[1721138254122,6.3775,156.8,156.79,0.8419054]
[1721138257137,16.3775,156.8,156.79,0.8419054]
[1721138257443,71.3775,156.8,156.79,0.8419054]
[1721138258328,78.03419231,156.8,156.79,0.8419054]
[1721138258716,78.20419231,156.8,156.79,0.8419054]
[1721138260437,78.37419231,156.8,156.79,0.8419054]
[1721138262920,10.0,156.75,156.71,15.8085]
[1721138263127,6.3804,156.73,156.71,15.8085]
[1721138263439,0.46265684,156.74,156.71,15.8085]
[1721138263812,0.46265684,156.74,156.71,22.1896]
[1721138264232,6.84265684,156.74,156.71,15.8085]
[1721138264918,0.46265684,156.74,156.71,15.8085]
[1721138265340,6.3804,156.73,156.71,15.8085]
[1721138265642,0.46265684,156.72,156.71,15.8085]
[1721138265813,6.84355684,156.72,156.67,12.7394]
[1721138266015,6.3813,156.71,156.67,6.3567]
[1721138266330,6.3813,156.71,156.67,12.7394]
[1721138266331,0.46265684,156.7,156.67,12.7394]
[1721138266715,0.46265684,156.71,156.68,6.3823]
[1721138266916,10.0,156.74,156.68,6.3822]
[1721138267129,6.3804,156.73,156.68,6.3822]
[1721138267339,25.9483,156.76,156.69,6.382]
[1721138267640,6.38,156.74,156.69,6.3817]
[1721138268041,6.84235684,156.75,156.7,6.3816]
[1721138268244,6.3799,156.74,156.69,6.3819]
[1721138268456,0.46265684,156.73,156.69,6.3819]
[1721138269136,6.84335684,156.73,156.68,22.3382]
[1721138269330,6.3809,156.72,156.68,15.9558]
[1721138269531,0.46265684,156.71,156.68,15.9558]
[1721138269728,0.46265684,156.72,156.68,22.3381]
[1721138269913,0.46265684,156.72,156.69,6.3819]
[1721138270116,0.46265684,156.74,156.7,6.3814]
[1721138270426,0.46265684,156.74,156.69,6.3819]
[1721138271321,6.3805,156.73,156.69,6.3819]
[1721138271528,0.46265684,156.72,156.68,22.3381]
[1721138271832,0.46265684,156.74,156.71,15.9528]
[1721138272135,6.66086207,156.75,156.71,15.9528]
[1721138272136,6.3796,156.75,156.71,15.9528]
[1721138272341,6.3796,156.75,156.71,17.22883624]
[1721138272935,6.3796,156.75,156.71,23.60993624]
[1721138273140,6.38,156.74,156.68,17.2312785]
[1721138273337,6.38,156.74,156.69,6.5517]
[1721138273538,6.38,156.74,156.7,1.27608554]
[1721138273840,6.3797,156.75,156.71,1.27606864]
[1721138274211,6.3797,156.75,156.71,6.3811]
[1721138274416,6.3797,156.75,156.71,7.65716831]
[1721138274615,6.3797,156.75,156.7,22.3352]
[1721138274616,0.46265684,156.74,156.7,22.3352]
[1721138274839,6.3797,156.75,156.71,1.2760923]
[1721138275338,6.38,156.74,156.71,1.2760923]
[1721138275715,6.38,156.74,156.7,15.9538]
[1721138275932,6.38,156.74,156.71,1.27609125]
[1721138276148,0.46265684,156.77,156.67,6.5267]
[1721138276149,6.3804,156.73,156.69,6.3819]
[1721138276442,6.3804,156.73,156.7,1.27611059]
[1721138276653,6.3801,156.74,156.7,1.27611059]
[1721138277145,6.3801,156.74,156.71,1.27609999]
[1721138277646,6.3801,156.74,156.7,7.6576945]
[1721138277826,6.3801,156.74,156.7,1.2760945]
[1721138278219,6.3804,156.73,156.7,1.2760945]
[1721138278421,6.3804,156.73,156.7,16.9460945]
[1721138279545,6.3801,156.74,156.7,16.9460945]
[1721138280127,0.46265684,156.73,156.69,1.27612594]
[1721138280323,6.3816,156.7,156.67,6.3567]
[1721138280520,15.67,156.69,156.66,16.2694]
[1721138280718,6.382,156.69,156.66,16.2694]
[1721138280914,15.67,156.67,156.66,16.2694]
[1721138281221,6.3816,156.7,156.66,16.2694]
[1721138281222,6.3821,156.69,156.66,16.2694]
[1721138281422,6.3816,156.7,156.66,16.2694]
[1721138281736,15.67,156.69,156.66,16.2694]
[1721138281941,0.46265684,156.7,156.66,22.6526]
[1721138282246,6.3812,156.71,156.66,22.6525]
[1721138282423,6.3816,156.7,156.66,16.2694]
[1721138282925,0.46265684,156.69,156.66,16.2694]
[1721138284233,6.84425684,156.7,156.66,16.2694]
[1721138284543,0.46265684,156.71,156.66,16.2694]
[1721138284921,6.3817,156.7,156.66,16.2694]
[1721138285140,6.84475684,156.69,156.66,16.2694]
[1721138285347,0.46265684,156.68,156.66,16.2694]
[1721138285644,6.84475684,156.69,156.66,16.2694]
[1721138285945,0.46265684,156.68,156.66,16.2694]
[1721138286173,6.84515684,156.68,156.66,16.2694]
[1721138286464,6.3825,156.68,156.66,16.2694]
[1721138286941,0.46265684,156.67,156.63,13.4606054]
[1721138287336,0.46265684,156.67,156.63,7.0763054]
[1721138287525,25.9537,156.71,156.63,7.0763054]
[1721138287526,6.3835,156.66,156.63,0.8419054]
[1721138287726,6.384,156.64,156.63,0.8419054]
[1721138288320,6.84635684,156.65,156.63,0.8419054]
[1721138288634,0.46265684,156.64,156.63,0.8419054]
[1721138288834,6.84665684,156.64,156.63,0.8419054]
[1721138289348,72.01665684,156.64,156.63,0.8419054]
[1721138289546,72.18665684,156.64,156.63,0.8419054]
[1721138291341,72.18665684,156.64,156.63,5.4e-06]
[1721138292154,71.554,156.64,156.63,5.4e-06]
[1721138292332,71.724,156.64,156.63,5.4e-06]
[1721138292526,92.18665684,156.64,156.63,5.4e-06]
[1721138292727,98.56025684,156.64,156.63,5.4e-06]
[1721138293151,117.73025684,156.64,156.63,5.4e-06]
[1721138295140,98.56025684,156.64,156.63,5.4e-06]
[1721138295343,105.20872051,156.64,156.63,5.4e-06]
[1721138295539,10.0,156.6,156.52,22.3601]
[1721138295729,45.46265684,156.59,156.52,22.3601]
[1721138295929,6.387,156.57,156.52,15.9713]
[1721138296131,0.46265684,156.56,156.51,16.3289]
[1721138296327,6.3889,156.53,156.47,22.4381]
[1721138296540,10.0,156.54,156.46,15.9782]
[1721138296541,6.3897,156.51,156.46,22.3694]
[1721138296744,10.0,156.54,156.45,16.0474]
[1721138296935,0.46265684,156.53,156.45,16.0474]
[1721138297130,6.3895,156.51,156.45,39.69545941]
[1721138297338,0.46265684,156.5,156.45,38.4175]
[1721138297545,0.46265684,156.5,156.46,7.66887681]
[1721138297845,0.46265684,156.5,156.46,6.3912]
[1721138298051,0.46265684,156.51,156.46,6.3912]
[1721138298250,0.46265684,156.51,156.45,32.0259]
[1721138298440,10.0,156.51,156.45,16.0474]
[1721138298642,0.46265684,156.5,156.45,17.32567943]
[1721138298841,0.46265684,156.52,156.49,6.3901]
[1721138299036,6.85105684,156.54,156.47,15.9775]
[1721138299237,0.46265684,156.54,156.47,15.9775]
[1721138299447,45.46265684,156.54,156.47,22.3682]
[1721138299756,0.46265684,156.54,156.47,15.9775]
[1721138300355,0.46265684,156.54,156.49,7.66771097]
[1721138300659,0.46265684,156.54,156.5,6.3896]
[1721138300845,0.46265684,156.54,156.5,15.9741]
[1721138301052,6.3882,156.54,156.48,7.2324054]
[1721138301233,6.3882,156.54,156.49,7.34702805]
[1721138301565,0.46265684,156.55,156.49,0.95702805]
[1721138301736,0.46265684,156.56,156.49,15.9752]
[1721138301934,0.46265684,156.56,156.5,1.27771266]
[1721138302156,0.46265684,156.56,156.51,15.9724]
[1721138302362,6.3888,156.53,156.48,0.8419054]
[1721138302664,0.46265684,156.56,156.48,0.8419054]
[1721138302665,6.3894,156.51,156.48,0.8419054]
[1721138302963,0.46265684,156.5,156.48,0.8419054]
[1721138303346,6.3901,156.49,156.48,0.8419054]
[1721138303772,6.85245684,156.5,156.48,0.8419054]
[1721138304259,0.46265684,156.5,156.48,0.8419054]
[1721138304637,0.46265684,156.52,156.48,0.8419054]
[1721138304837,10.0,156.54,156.48,0.8419054]
[1721138305158,20.0,156.54,156.48,0.8419054]
[1721138305467,6.85125684,156.53,156.48,0.8419054]
[1721138305769,6.85165684,156.52,156.48,0.8419054]
[1721138305933,6.3885,156.53,156.48,7.2324054]
[1721138306133,0.46265684,156.54,156.49,6.3901]
[1721138306656,0.46265684,156.54,156.5,6.3897]
[1721138306867,6.84985684,156.57,156.51,7.66702805]
[1721138307033,6.84985684,156.57,156.52,22.1355]
[1721138307233,0.46265684,156.57,156.52,22.1355]
[1721138307442,0.46265684,156.57,156.52,15.7467]
[1721138307671,6.3887,156.53,156.48,23.2086054]
[1721138308040,6.3884,156.54,156.48,16.8181054]
[1721138308234,0.46265684,156.53,156.48,23.2086054]
[1721138308539,6.85135684,156.53,156.48,23.2086054]
[1721138308735,6.3887,156.53,156.48,23.2086054]
[1721138308961,6.85075684,156.55,156.49,6.3901]
[1721138309152,6.85075684,156.54,156.49,6.3901]
[1721138309553,6.85075684,156.54,156.48,23.2086054]
[1721138309757,0.46265684,156.55,156.48,16.8181054]
[1721138310067,0.46265684,156.57,156.5,15.9738]
[1721138310239,0.46265684,156.57,156.52,6.3888]
[1721138310562,0.46265684,156.57,156.5,22.3631]
[1721138310744,6.3874,156.56,156.51,6.3893]
[1721138310941,6.3874,156.56,156.51,7.66688819]
[1721138311174,0.46265684,156.57,156.52,6.3888]
[1721138311338,0.46265684,156.57,156.53,1.27753487]
[1721138311538,6.84945684,156.58,156.54,21.9342]
[1721138311966,6.3868,156.58,156.54,21.9342]
[1721138312182,6.3873,156.56,156.54,21.9342]
[1721138312360,6.3877,156.55,156.54,15.5835]
[1721138312577,6.3877,156.55,156.5,27.7824]
[1721138312955,6.3878,156.55,156.5,27.7823]
[1721138313292,6.3873,156.56,156.51,6.3892]
[1721138313453,6.3872,156.57,156.52,6.3888]
[1721138313653,0.46265684,156.56,156.52,6.3888]
[1721138313875,6.85005684,156.56,156.51,6.3892]
[1721138314078,10.0,156.51,156.48,0.8419054]
[1721138314254,6.3901,156.49,156.48,0.8419054]
[1721138315194,0.46265684,156.52,156.48,0.8419054]
[1721138315360,6.3895,156.51,156.48,0.8419054]
[1721138315985,0.46265684,156.52,156.48,0.8419054]
[1721138316155,10.0,156.52,156.48,0.8419054]
[1721138316492,6.3901,156.49,156.48,0.8419054]
[1721138316859,6.85275684,156.49,156.48,0.8419054]
[1721138319096,16.85275684,156.49,156.48,0.8419054]
[1721138319262,62.19275684,156.49,156.48,0.8419054]
[1721138319574,82.19275684,156.49,156.48,0.8419054]
[1721138320255,6.393,156.42,156.41,0.04015262]
[1721138320793,6.85565144,156.42,156.41,0.04015262]
[1721138321298,0.46265144,156.48,156.41,0.04015262]
[1721138321473,10.0,156.47,156.41,16.02275262]
[1721138321789,6.3918,156.45,156.41,0.04015262]
[1721138321968,6.85485144,156.44,156.41,0.04015262]
[1721138322162,0.46265144,156.46,156.41,6.43345262]
[1721138322377,6.85415144,156.46,156.41,0.04015262]
[1721138322583,6.85455144,156.45,156.41,0.04015262]
[1721138322795,6.393,156.42,156.41,0.04015262]
[1721138323167,6.85565144,156.42,156.41,0.04015262]
[1721138325091,6.3927,156.43,156.41,0.04015262]
[1721138325270,6.85565144,156.42,156.41,0.04015262]
[1721138325471,6.393,156.42,156.41,0.04015262]
[1721138326772,16.393,156.42,156.41,0.04015262]
[1721138326987,6.393,156.42,156.41,0.04015262]
[1721138327290,16.85565144,156.42,156.41,0.04015262]
[1721138327670,61.85565144,156.42,156.41,0.04015262]
[1721138328691,51.85565144,156.42,156.41,0.04015262]
[1721138328884,68.16585144,156.42,156.41,0.04015262]
[1721138329189,88.50585144,156.42,156.41,5.262e-05]
[1721138329370,81.85565144,156.42,156.41,5.262e-05]
[1721138330394,61.85565144,156.42,156.41,5.262e-05]
[1721138330585,16.85565144,156.42,156.41,5.262e-05]
[1721138331771,62.19565144,156.42,156.41,5.262e-05]
[1721138332904,68.82283707,156.42,156.41,5.262e-05]
[1721138333981,87.99283707,156.42,156.41,5.262e-05]
[1721138334177,88.82283707,156.42,156.41,5.262e-05]
[1721138334902,68.82283707,156.42,156.41,5.262e-05]
[1721138336272,23.48283707,156.42,156.41,5.262e-05]
[1721138337589,6.3963,156.35,156.32,0.8419054]
[1721138338103,6.85895144,156.34,156.32,0.8419054]
[1721138338308,6.3956,156.36,156.32,0.8419054]
[1721138338676,0.46265144,156.37,156.32,0.8419054]
[1721138339001,0.46265144,156.38,156.32,16.8338054]
[1721138339298,6.85765144,156.38,156.32,23.2308054]
[1721138339501,6.85765144,156.38,156.32,16.8338054]
[1721138339502,6.3955,156.36,156.32,16.8338054]
[1721138339706,6.3964,156.34,156.32,0.8419054]
[1721138339870,6.396,156.35,156.32,0.8419054]
[1721138340286,0.46265144,156.37,156.32,0.8419054]
[1721138340690,6.3952,156.37,156.32,7.2387054]
[1721138340893,0.46265144,156.36,156.32,7.2387054]
[1721138341111,6.85815144,156.36,156.32,0.8419054]
[1721138341407,6.3951,156.37,156.32,7.2389054]
[1721138341601,6.85725144,156.39,156.34,6.3962]
[1721138341905,6.3953,156.37,156.33,6.6501]
[1721138342203,6.3943,156.39,156.34,6.3962]
[1721138342505,6.85625144,156.41,156.36,6.3952]
[1721138342810,35.9852,156.4,156.33,6.6501]
[1721138343105,0.46265144,156.39,156.33,6.6501]
[1721138343281,6.3955,156.36,156.33,6.6501]
[1721138343485,6.3959,156.35,156.33,6.6501]
[1721138343708,6.3956,156.36,156.33,6.6501]
[1721138344009,0.46265144,156.37,156.33,6.6501]
[1721138344192,13.47317713,156.39,156.33,6.6501]
[1721138344511,6.61622569,156.39,156.33,22.641]
[1721138344685,13.01052569,156.39,156.34,6.396]
[1721138345285,6.3947,156.38,156.33,22.641]
[1721138345486,6.3951,156.37,156.33,29.0376]
[1721138345689,6.3955,156.36,156.33,6.6501]
[1721138345889,0.46265144,156.38,156.33,6.6501]
[1721138346091,10.46265144,156.38,156.33,6.6501]
[1721138346311,6.3963,156.34,156.32,0.8419054]
[1721138346718,0.46265144,156.33,156.32,0.8419054]
[1721138346886,0.46265144,156.35,156.32,0.8419054]
[1721138347094,20.0,156.38,156.32,7.2389054]
[1721138347095,6.3955,156.36,156.32,7.2389054]
[1721138347296,0.46265144,156.35,156.32,0.8419054]
[1721138347497,6.85815144,156.36,156.32,0.8419054]
[1721138347703,6.3967,156.33,156.32,0.8419054]
[1721138347988,6.3952,156.37,156.32,7.2389054]
[1721138348195,6.3951,156.37,156.32,7.2390054]
[1721138348428,0.46265144,156.38,156.32,0.8419054]
[1721138348782,0.46265144,156.38,156.34,15.9907]
[1721138348998,6.395,156.37,156.32,7.2389054]
[1721138349597,6.3957,156.36,156.32,0.8419054]
[1721138349796,6.3957,156.36,156.32,7.2390054]
[1721138350009,6.3957,156.36,156.32,0.8419054]
[1721138350218,6.85765144,156.38,156.32,7.2390054]
[1721138350708,6.3951,156.37,156.32,7.2390054]
[1721138351239,6.396,156.35,156.32,0.8419054]
[1721138351533,6.3955,156.36,156.32,7.2389054]
[1721138351699,0.46265144,156.35,156.32,0.8419054]
[1721138351905,6.3955,156.36,156.32,0.8419054]
[1721138352236,0.46265144,156.35,156.32,0.8419054]
[1721138352402,6.396,156.35,156.32,0.8419054]
[1721138352598,0.46265144,156.38,156.32,0.8419054]
[1721138352599,6.3956,156.36,156.32,0.8419054]
[1721138352801,6.85855144,156.35,156.32,0.8419054]
[1721138353010,6.85905144,156.34,156.32,0.8419054]
[1721138353234,6.3964,156.34,156.32,0.8419054]
[1721138353428,0.46265144,156.36,156.32,7.2390054]
[1721138353608,6.85845144,156.36,156.32,0.8419054]
[1721138354008,0.46265144,156.35,156.32,0.8419054]
[1721138354230,6.3966,156.34,156.32,0.8419054]
[1721138354436,6.85935144,156.33,156.32,0.8419054]
[1721138354606,6.3963,156.34,156.32,0.8419054]
[1721138354806,6.85865144,156.35,156.32,0.8419054]
[1721138355031,6.3964,156.34,156.32,0.8419054]
[1721138355207,0.46265144,156.33,156.32,0.8419054]
[1721138355710,6.85935144,156.33,156.32,0.8419054]
[1721138356129,6.3967,156.33,156.32,0.8419054]
[1721138356314,6.3963,156.34,156.32,0.8419054]
[1721138356506,0.46265144,156.33,156.32,0.8419054]
[1721138357025,6.3959,156.35,156.32,0.8419054]
[1721138357222,0.46265144,156.34,156.32,0.8419054]
[1721138357632,6.85865144,156.35,156.32,0.8419054]
[1721138357931,0.46265144,156.37,156.34,6.396]
[1721138358113,0.46265144,156.37,156.32,2.12107351]
[1721138358313,0.46265144,156.37,156.34,15.9901]
[1721138358624,0.46265144,156.37,156.33,7.67576811]
[1721138358831,0.46265144,156.37,156.32,0.8419054]
[1721138359020,6.3957,156.36,156.32,0.8419054]
[1721138360024,6.85855144,156.35,156.32,0.8419054]
[1721138360342,6.3959,156.35,156.32,0.8419054]
[1721138360640,0.46265144,156.34,156.32,0.8419054]
[1721138361136,0.46265144,156.37,156.32,0.8419054]
[1721138361319,6.85775144,156.37,156.32,7.2389054]
[1721138361650,6.85775144,156.37,156.33,6.3966]
[1721138361651,0.46265144,156.37,156.33,6.3966]
[1721138362018,6.85735144,156.38,156.33,22.3875]
[1721138362435,6.3951,156.37,156.33,22.3875]
[1721138362742,6.3966,156.34,156.32,0.8419054]
[1721138362919,6.85935144,156.33,156.32,0.8419054]
[1721138363116,6.3967,156.33,156.32,0.8419054]
[1721138363311,0.46265144,156.36,156.32,0.8419054]
[1721138363863,6.85815144,156.36,156.32,0.8419054]
[1721138364155,10.0,156.34,156.32,0.8419054]
[1721138364315,6.85935144,156.33,156.32,0.8419054]
[1721138365248,51.85935144,156.33,156.32,0.8419054]
[1721138365543,52.19935144,156.33,156.32,0.8419054]
[1721138365743,70.9067,156.33,156.32,5.4e-06]
[1721138365923,51.7367,156.33,156.32,5.4e-06]
[1721138367139,70.9067,156.33,156.32,5.4e-06]
[1721138368023,70.9067,156.33,156.18,16.007]
[1721138368024,6.4016,156.21,156.18,15.1089]
[1721138368233,6.402,156.2,156.18,15.1089]
[1721138368438,6.3998,156.26,156.18,31.1155]
[1721138368779,6.5928972,156.26,156.25,6.4]
[1721138369121,41.35,156.28,156.23,16.0015]
[1721138369321,37.95419984,156.28,156.21,6.4138]
[1721138369545,37.95419984,156.28,156.21,22.4169]
[1721138369869,0.46265144,156.27,156.26,6.3995]
[1721138370017,6.60419984,156.28,156.24,22.401]
[1721138370217,0.46265144,156.27,156.22,6.4011]
[1721138370529,7.06685128,156.28,156.24,6.4002]
[1721138370731,0.46265144,156.27,156.21,6.4138]
[1721138371566,6.4004,156.24,156.21,6.4138]
[1721138371725,10.46265144,156.23,156.18,15.1089]
[1721138371926,41.81265144,156.23,156.18,15.1089]
[1721138372245,10.0,156.21,156.18,15.1089]
[1721138372457,0.46265144,156.22,156.18,15.1089]
[1721138372844,6.4018,156.21,156.18,15.1089]
[1721138373048,0.46265144,156.22,156.18,15.1089]
[1721138373787,0.46265144,156.22,156.18,22.79213713]
[1721138373933,6.86295144,156.25,156.19,6.4024]
[1721138374269,0.46265144,156.25,156.18,15.1089]
[1721138374435,6.4012,156.22,156.18,15.1089]
[1721138374640,35.9999,156.26,156.18,15.1089]
[1721138374839,0.46265144,156.25,156.18,15.1089]
[1721138375076,6.4018,156.21,156.18,15.1089]
[1721138375257,6.4028,156.18,156.17,0.8419054]
[1721138375446,0.46265144,156.2,156.17,0.8419054]
[1721138375447,6.86495144,156.2,156.17,0.8419054]
[1721138375772,20.46265144,156.2,156.17,0.8419054]
[1721138375943,6.4028,156.18,156.17,0.8419054]
[1721138376140,26.86545144,156.18,156.17,0.8419054]
[1721138376684,26.86545144,156.18,156.14,9.42811506]
[1721138376685,6.404,156.15,156.14,9.42811506]
[1721138376844,26.574,156.15,156.14,9.42811506]
[1721138377044,71.574,156.15,156.14,9.42811506]
[1721138377568,61.404,156.15,156.14,9.42811506]
[1721138377771,16.404,156.15,156.14,9.42811506]
[1721138377982,6.4055,156.12,156.07,22.3455]
[1721138378166,6.4049,156.13,156.07,22.3455]
[1721138378346,6.406,156.11,156.07,15.9385]
[1721138378548,6.4062,156.1,156.07,15.9385]
[1721138378771,6.4061,156.11,156.07,15.9385]
[1721138378946,6.86835144,156.12,156.08,1.28132187]
[1721138379146,6.86835144,156.12,156.07,15.9385]
[1721138379147,6.4057,156.11,156.07,15.9385]
[1721138379474,0.46265144,156.1,156.07,15.9385]
[1721138379678,6.86795144,156.12,156.07,15.9385]
[1721138380057,6.4057,156.11,156.07,15.9385]
[1721138380398,6.4063,156.1,156.07,15.9385]
[1721138380759,6.4057,156.11,156.07,15.9385]
[1721138381592,0.46265144,156.1,156.07,15.9385]
[1721138381765,0.46265144,156.12,156.07,15.9385]
[1721138382275,6.4066,156.09,156.07,15.9385]
[1721138382697,0.46265144,156.12,156.07,15.9385]
[1721138382878,6.86805144,156.12,156.07,22.3455]
[1721138383262,0.46265144,156.12,156.07,15.9385]
[1721138383570,6.4065,156.1,156.07,15.9385]
[1721138384287,0.46265144,156.12,156.07,15.9385]
[1721138384478,6.4061,156.1,156.07,15.9385]
[1721138385102,6.4058,156.11,156.07,15.9385]
[1721138385397,6.4069,156.08,156.07,15.9385]
[1721138385890,6.4066,156.09,156.07,15.9385]
[1721138386099,6.4059,156.11,156.07,15.9385]
[1721138386271,16.60914716,156.13,156.07,15.9385]
[1721138386459,10.0,156.12,156.07,15.9385]
[1721138386897,6.4064,156.1,156.07,15.9385]
[1721138387190,6.4064,156.1,156.04,9.42074251]
[1721138387191,6.4069,156.08,156.04,9.42074251]
[1721138387390,16.4065,156.1,156.04,9.42074251]
[1721138387594,10.0,156.12,156.04,9.42074251]
[1721138387792,6.4058,156.11,156.07,15.058]
[1721138387995,6.4062,156.1,156.07,15.058]
[1721138388393,6.4065,156.09,156.07,15.058]
[1721138388793,6.4062,156.1,156.07,15.058]
[1721138388994,6.4057,156.11,156.07,15.058]
[1721138389173,6.60914716,156.13,156.04,9.42074251]
[1721138389174,10.0,156.07,156.04,9.42074251]
[1721138389372,6.4082,156.05,156.04,9.42074251]
[1721138389876,23.02014665,156.05,156.04,9.42074251]
[1721138390264,68.02014665,156.05,156.04,9.42074251]
[1721138390495,68.02014665,156.05,156.01,0.8419054]
[1721138390496,6.4094,156.02,156.01,0.8419054]
[1721138390796,16.4089,156.04,156.01,0.8419054]
[1721138391088,16.61194665,156.05,156.01,0.8419054]
[1721138391328,10.0,156.03,156.01,0.8419054]
[1721138391477,6.4094,156.02,156.01,0.8419054]
[1721138392882,6.409,156.03,156.01,0.8419054]
[1721138393381,6.61194665,156.05,156.01,0.8419054]
[1721138393570,13.02044665,156.05,156.01,0.8419054]
[1721138393775,6.4086,156.04,156.01,0.8419054]
[1721138394096,6.409,156.03,156.01,0.8419054]
[1721138394286,6.61194665,156.05,156.01,0.8419054]
[1721138394607,0.95179295,156.02,156.01,0.8419054]
[1721138398478,7.36119295,156.02,156.01,0.8419054]
[1721138398771,0.95179295,156.02,156.01,0.8419054]
[1721138399878,7.36119295,156.02,156.01,0.8419054]
[1721138400304,17.36119295,156.02,156.01,0.8419054]
[1721138400482,23.97837168,156.02,156.01,0.8419054]
[1721138400677,68.97837168,156.02,156.01,0.8419054]
[1721138400989,78.97837168,156.02,156.01,0.8419054]
[1721138401371,68.97837168,156.02,156.01,0.8419054]
[1721138401599,13.97837168,156.02,156.01,0.8419054]
[1721138401803,0.95179295,156.02,156.01,0.8419054]
[1721138401991,0.95179295,156.02,156.01,7.2517054]
[1721138402187,0.95179295,156.02,156.01,0.8419054]
[1721138402507,0.95179295,156.02,156.01,7.2517054]
[1721138402923,0.95179295,156.02,156.01,0.8419054]
[1721138404002,7.36119295,156.02,156.01,0.8419054]
[1721138404402,0.95179295,156.02,156.01,0.8419054]
[1721138404727,17.36119295,156.02,156.01,0.8419054]
[1721138404896,62.36119295,156.02,156.01,0.8419054]
[1721138405100,68.97815317,156.02,156.01,0.8419054]
[1721138406891,23.97815317,156.02,156.01,0.8419054]
[1721138407616,13.97815317,156.02,156.01,0.8419054]
[1721138407797,7.36119295,156.02,156.01,0.8419054]
[1721138410204,52.36119295,156.02,156.01,0.8419054]
[1721138410405,7.36119295,156.02,156.01,0.8419054]
[1721138410603,7.36119295,156.02,155.94,16.07157364]
[1721138410604,6.4114,155.97,155.94,0.04027364]
[1721138410816,10.0,155.99,155.94,0.04027364]
[1721138411296,10.0,156.01,155.94,0.04027364]
[1721138411725,0.95179295,156.02,155.98,6.4109]
[1721138411907,0.95179295,156.02,155.99,6.4104]
[1721138412094,0.95179295,156.02,155.99,16.1974]
[1721138412297,13.03037043,156.03,155.99,16.1974]
[1721138412914,10.0,156.01,155.96,15.2162]
[1721138413127,7.36209295,156.0,155.96,15.2162]
[1721138413844,0.95179295,156.0,155.96,15.2162]
[1721138414120,6.4114,155.97,155.96,15.2162]
[1721138414523,7.36319295,155.97,155.96,15.2162]
[1721138414896,6.4122,155.96,155.94,6.26547364]
[1721138415098,10.95179295,155.97,155.94,0.04027364]
[1721138415296,6.4123,155.95,155.94,0.04027364]
[1721138415496,6.87495144,155.95,155.94,0.04027364]
[1721138416301,32.90565144,155.95,155.94,0.04027364]
[1721138416497,23.85744439,155.95,155.94,0.04027364]
[1721138417017,34.02744439,155.95,155.94,0.04027364]
[1721138417227,16.4144,155.9,155.85,29.0291054]
[1721138417397,10.0,155.88,155.85,16.4141054]
[1721138417612,6.416,155.86,155.85,16.4141054]
[1721138417810,6.87825144,155.87,155.85,16.4141054]
[1721138418025,6.416,155.86,155.85,16.4141054]
[1721138418225,6.87825144,155.87,155.85,16.4141054]
[1721138418425,6.416,155.86,155.85,16.4141054]
[1721138418945,6.416,155.86,155.85,0.8419054]
[1721138419314,17.36779295,155.86,155.85,0.8419054]
[1721138419709,62.36779295,155.86,155.85,0.8419054]
[1721138420010,62.36779295,155.86,155.77,16.0489]
[1721138420011,56.12179295,155.86,155.77,22.6423]
[1721138420241,0.46265144,155.85,155.78,1.2838319]
[1721138420409,0.46265144,155.85,155.8,16.0452]
[1721138420604,0.95179295,155.86,155.85,6.4164]
[1721138420806,6.4164,155.85,155.8,16.0461]
[1721138421040,0.95179295,155.81,155.78,16.5442]
[1721138421214,0.46265144,155.8,155.78,16.5442]
[1721138421908,6.88115144,155.8,155.78,16.5442]
[1721138422114,10.0,155.78,155.73,32.5972]
[1721138422319,0.46265144,155.78,155.73,32.5972]
[1721138422523,0.95179295,155.74,155.73,39.0185]
[1721138422760,0.95179295,155.74,155.73,16.5442]